fUST/lending_fUST_20250709
["ID","MTS","AMOUNT","RATE_DAILY","PERIOD"]
[370484324,1752040232526,-460.0,0.00019178,2]
[370484326,1752040232536,-460.0,0.00019178,2]
[370484328,1752040232547,-460.0,0.00019178,2]
[370484330,1752040232557,-460.0,0.00019178,2]
[370484332,1752040232568,-460.0,0.00019178,2]
[370484334,1752040232577,-460.0,0.00019178,2]
[370484336,1752040232587,-1371.06,0.00019178,2]
[370484338,1752040232597,-460.0,0.00019178,2]
[370484340,1752040232607,-781.1,0.00019178,2]
[370484342,1752040232617,-460.0,0.00019178,2]
[370484344,1752040232628,-460.0,0.00019178,2]
[370484346,1752040232638,-460.0,0.00019178,2]
[370484348,1752040232648,-460.0,0.00019178,2]
[370484350,1752040232658,-460.0,0.00019178,2]
[370484352,1752040232668,-460.0,0.00019178,2]
[370484354,1752040232679,-460.0,0.00019178,2]
[370484356,1752040232689,-875.57,0.00019178,2]
[370484358,1752040232700,-460.0,0.00019178,2]
[370484361,1752040232711,-507.12,0.00019178,2]
[370484363,1752040232722,-955.37,0.00019178,2]
[370484364,1752040232732,-460.0,0.00019178,2]
[370484366,1752040232741,-460.0,0.00019178,2]
[370484368,1752040232752,-460.0,0.00019178,2]
[370484370,1752040232761,-606.93,0.00019178,2]
[370484372,1752040232771,-502.98,0.00019178,2]
[370484373,1752040232781,-460.0,0.00019178,2]
[370484374,1752040232790,-460.0,0.00019178,2]
[370484376,1752040232800,-460.0,0.00019178,2]
[370484378,1752040232809,-1323.68,0.00019178,2]
[370484380,1752040232818,-460.0,0.00019178,2]
[370484382,1752040232829,-460.0,0.00019178,2]
[370484405,1752040233039,-460.0,0.00019178,2]
[370484408,1752040233051,-460.0,0.00019178,2]
[370484410,1752040233062,-460.0,0.00019178,2]
[370484412,1752040233072,-460.0,0.00019178,2]
[370484414,1752040233082,-460.0,0.00019178,2]
[370484416,1752040233092,-460.0,0.00019178,2]
[370484418,1752040233101,-460.0,0.00019178,2]
[370484420,1752040233113,-460.0,0.00019178,2]
[370484422,1752040233123,-460.0,0.00019178,2]
[370484424,1752040233133,-460.0,0.00019178,2]
[370484426,1752040233145,-460.0,0.00019178,2]
[370484428,1752040233160,-460.0,0.00019178,2]
[370484430,1752040233170,-460.0,0.00019178,2]
[370484432,1752040233180,-460.0,0.00019178,2]
[370484434,1752040233191,-460.0,0.00019178,2]
[370484436,1752040233201,-460.0,0.00019178,2]
[370484438,1752040233212,-460.0,0.00019178,2]
[370484440,1752040233221,-460.0,0.00019178,2]
[370484442,1752040233232,-1710.39,0.00019178,2]
[370484444,1752040233242,-460.0,0.00019178,2]
[370484446,1752040233251,-520.78,0.00019178,2]
[370484448,1752040233261,-460.0,0.00019178,2]
[370484450,1752040233271,-460.0,0.00019178,2]
[370484452,1752040233280,-460.0,0.00019178,2]
[370484454,1752040233289,-460.0,0.00019178,2]
[370484456,1752040233299,-666.0,0.00019178,2]
[370484458,1752040233308,-206.148939,0.00019178,2]
[370484460,1752040233318,-158.74,0.00019451,2]
[370484462,1752040233328,-460.0,0.00019451,2]
[370484464,1752040233338,-460.0,0.00019451,2]
[370484466,1752040233348,-502.98,0.00019451,2]
[370484468,1752040233357,-460.0,0.00019451,2]
[370484470,1752040233367,-460.0,0.00019451,2]
[370484472,1752040233376,-460.0,0.00019451,2]
[370484474,1752040233386,-460.0,0.00019452,2]
[370484476,1752040233395,-460.0,0.00019452,2]
[370484478,1752040233405,-460.0,0.00019452,2]
[370484480,1752040233415,-460.0,0.00019452,2]
[370484481,1752040233425,-460.0,0.00019452,2]
[370484482,1752040233434,-460.0,0.00019452,2]
[370484483,1752040233444,-460.0,0.00019452,2]
[370484485,1752040233453,-460.0,0.00019452,2]
[370484486,1752040233463,-460.0,0.00019452,2]
[370484488,1752040233472,-460.0,0.00019452,2]
[370484489,1752040233482,-195.76260256,0.00019452,2]
[370484490,1752040233492,-460.0,0.00019452,2]
[370484491,1752040233502,-460.0,0.00019452,2]
[370484492,1752040233512,-460.0,0.00019452,2]
[370484493,1752040233522,-460.0,0.00019452,2]
[370484495,1752040233532,-1371.06,0.00019452,2]
[370484498,1752040233542,-460.0,0.00019452,2]
[370484500,1752040233551,-781.1,0.00019452,2]
[370484502,1752040233561,-586.45707663,0.00019452,2]
[370484503,1752040233571,-460.0,0.00019452,2]
[370484505,1752040233581,-460.0,0.00019452,2]
[370484507,1752040233591,-460.0,0.00019452,2]
[370484509,1752040233601,-875.57,0.00019452,2]
[370484511,1752040233611,-460.0,0.00019452,2]
[370484513,1752040233621,-507.12,0.00019452,2]
[370484515,1752040233631,-955.37,0.00019452,2]
[370484517,1752040233641,-471.46,0.00019452,2]
[370484519,1752040233651,-335.27262148,0.00019452,2]
[370484521,1752040233661,-460.0,0.00019452,2]
[370484523,1752040233671,-606.93,0.00019452,2]
[370484524,1752040233681,-460.0,0.00019452,2]
[370484526,1752040233691,-460.0,0.00019452,2]
[370484528,1752040233701,-1323.68,0.00019452,2]
[370484530,1752040233711,-460.0,0.00019452,2]
[370484532,1752040233721,-460.0,0.00019452,2]
[370484534,1752040233730,-292.13,0.00019452,2]
[370484536,1752040233740,-460.0,0.00019452,2]
[370484538,1752040233749,-460.0,0.00019452,2]
[370484540,1752040233759,-460.0,0.00019452,2]
[370484542,1752040233769,-460.0,0.00019452,2]
[370484544,1752040233779,-460.0,0.00019452,2]
[370484546,1752040233788,-460.0,0.00019452,2]
[370484548,1752040233798,-460.0,0.00019452,2]
[370484550,1752040233807,-460.0,0.00019452,2]
[370484552,1752040233817,-408.69964864,0.00019452,2]
[370484554,1752040233826,-460.0,0.00019452,2]
[370484556,1752040233836,-460.0,0.00019452,2]
[370484558,1752040233846,-460.0,0.00019452,2]
[370484560,1752040233856,-1710.39,0.00019452,2]
[370484562,1752040233865,-460.0,0.00019452,2]
[370484564,1752040233875,-460.0,0.00019725,2]
[370484566,1752040233886,-460.0,0.00019725,2]
[370484568,1752040233895,-502.98,0.00019725,2]
[370484570,1752040233905,-460.0,0.00019725,2]
[370484572,1752040233915,-460.0,0.00019725,2]
[370484574,1752040233924,-460.0,0.00019725,2]
[370484576,1752040233934,-172.00118546,0.00019726,2]
[370484578,1752040233943,-460.0,0.00019726,2]
[370484580,1752040233952,-460.0,0.00019726,2]
[370484582,1752040233963,-460.0,0.00019726,2]
[370484584,1752040233973,-460.0,0.00019726,2]
[370484586,1752040233982,-460.0,0.00019726,2]
[370484588,1752040233992,-460.0,0.00019726,2]
[370484590,1752040234002,-411.8078171,0.00019726,2]
[370484592,1752040234011,-463.910739,0.00019726,2]
[370484594,1752040234021,-462.53014485,0.00019726,2]
[370484596,1752040234030,-460.0,0.00019726,2]
[370484598,1752040234039,-460.0,0.00019726,2]
[370484600,1752040234049,-460.0,0.00019726,2]
[370484602,1752040234058,-556.41444176,0.00019726,2]
[370484604,1752040234068,-1371.06,0.00019726,2]
[370484606,1752040234077,-460.0,0.00019726,2]
[370484608,1752040234087,-781.1,0.00019726,2]
[370484610,1752040234097,-354.50549981,0.00019726,2]
[370484612,1752040234106,-152.02457431,0.00019726,2]
[370484614,1752040234116,-460.0,0.00019726,2]
[370484616,1752040234125,-875.57,0.00019726,2]
[370484618,1752040234134,-460.0,0.00019726,2]
[370484620,1752040234146,-507.12,0.00019726,2]
[370484622,1752040234156,-955.37,0.00019726,2]
[370484624,1752040234166,-460.0,0.00019726,2]
[370484626,1752040234175,-606.93,0.00019726,2]
[370484628,1752040234185,-460.0,0.00019726,2]
[370484630,1752040234195,-527.03022565,0.00019726,2]
[370484632,1752040234205,-1323.68,0.00019726,2]
[370484634,1752040234215,-460.0,0.00019726,2]
[370484636,1752040234226,-460.0,0.00019726,2]
[370484638,1752040234237,-460.0,0.00019726,2]
[370484640,1752040234246,-460.0,0.00019726,2]
[370484642,1752040234256,-460.0,0.00019726,2]
[370484644,1752040234266,-460.0,0.00019726,2]
[370484646,1752040234275,-303.72,0.00019726,2]
[370484648,1752040234285,-460.0,0.00019726,2]
[370484650,1752040234294,-460.0,0.00019726,2]
[370484652,1752040234303,-460.0,0.00019726,2]
[370484654,1752040234313,-460.0,0.00019726,2]
[370484656,1752040234323,-460.0,0.00019726,2]
[370484658,1752040234332,-1710.39,0.00019726,2]
[370484660,1752040234342,-460.0,0.00019726,2]
[370484662,1752040234351,-244.79010553,0.00019804,2]
[370484663,1752040234361,-500.0,0.00019835,2]
[370484664,1752040234370,-420.0,0.00019975,2]
[370484665,1752040234380,-373.63215116,0.0001999,2]
[370484666,1752040234389,-294.24,0.0001999,3]
[370484667,1752040234399,-882.77,0.0001999,3]
[370484668,1752040234409,-502.98,0.00019998,2]
[370484669,1752040234418,-500.0,0.00019999,2]
[370484670,1752040234428,-460.0,0.00019999,2]
[370484671,1752040234438,-460.0,0.00019999,2]
[370484672,1752040234447,-460.0,0.00019999,2]
[370484673,1752040234456,-460.0,0.00019999,2]
[370484674,1752040234466,-460.0,0.00019999,2]
[370484675,1752040234476,-460.0,0.00019999,2]
[370484676,1752040234485,-460.0,0.00019999,2]
[370484677,1752040234494,-460.0,0.00019999,2]
[370484678,1752040234505,-460.0,0.0002,2]
[370484679,1752040234514,-518.82,0.0002,2]
[370484680,1752040234524,-460.0,0.0002,2]
[370484681,1752040234534,-460.0,0.0002,2]
[370484682,1752040234544,-886.73565548,0.0002,21]
[370484683,1752040234553,-460.0,0.0002,2]
[370484684,1752040234563,-460.0,0.0002,2]
[370484685,1752040234573,-1371.06,0.0002,2]
[370484686,1752040234583,-460.0,0.0002,2]
[370484687,1752040234592,-781.1,0.0002,2]
[370484688,1752040234602,-460.0,0.0002,2]
[370484689,1752040234612,-875.57,0.0002,2]
[370484690,1752040234622,-240.0,0.0002,2]
[370484691,1752040234632,-507.12,0.0002,2]
[370484692,1752040234642,-955.37,0.0002,2]
[370484693,1752040234651,-460.0,0.0002,2]
[370484694,1752040234661,-606.93,0.0002,2]
[370484695,1752040234671,-460.0,0.0002,2]
[370484696,1752040234680,-1323.68,0.0002,2]
[370484697,1752040234689,-460.0,0.0002,2]
[370484698,1752040234700,-460.0,0.0002,2]
[370484699,1752040234710,-460.0,0.0002,2]
[370484700,1752040234719,-460.0,0.0002,2]
[370484701,1752040234729,-100139.0,0.0002,2]
[370484702,1752040234739,-460.0,0.0002,2]
[370484703,1752040234748,-460.0,0.0002,2]
[370484704,1752040234758,-460.0,0.0002,2]
[370484705,1752040234767,-460.0,0.0002,2]
[370484706,1752040234776,-460.0,0.0002,2]
[370484707,1752040234786,-1710.39,0.0002,2]
[370484708,1752040234795,-460.0,0.0002,2]
[370484709,1752040234805,-460.0,0.0002,2]
[370484710,1752040234814,-500.0,0.00020027,2]
[370484711,1752040234824,-500.0,0.00020027,2]
[370484712,1752040234833,-501.02388313,0.00020027,2]
[370484713,1752040234843,-500.0,0.00020027,2]
[370484714,1752040234852,-491.97369834,0.00020027,2]
[370484715,1752040234862,-500.0,0.00020027,2]
[370484716,1752040234872,-500.0,0.00020027,2]
[370484717,1752040234881,-500.0,0.00020027,2]
[370484718,1752040234891,-501.29073386,0.00020027,2]
[370484719,1752040234901,-500.0,0.00020027,2]
[370484720,1752040234910,-316.0,0.00020073,2]
[370484721,1752040234920,-167.95191414,0.0002011,2]
[370484722,1752040234930,-315.492472,0.00020146,2]
[370484723,1752040234939,-500.0,0.00020148,2]
[370484724,1752040234948,-1846.05360821,0.00020173,2]
[370484725,1752040234958,-369.198071,0.00020187,2]
[370484726,1752040234968,-230.53906051,0.00020193,2]
[370484727,1752040234977,-160.0,0.00020193,2]
[370484728,1752040234987,-848.55005627,0.00020193,2]
[370484729,1752040234996,-160.0,0.00020193,2]
[370484730,1752040235006,-215.27775528,0.00020193,2]
[370484731,1752040235016,-160.0,0.00020193,2]
[370484732,1752040235025,-160.0,0.00020193,2]
[370484733,1752040235035,-214.14293035,0.00020193,2]
[370484734,1752040235044,-837.99933892,0.00020193,2]
[370484735,1752040235053,-12589.12013084,0.00020193,2]
[370484736,1752040235062,-160.0,0.00020194,2]
[370484737,1752040235071,-160.0,0.00020194,2]
[370484738,1752040235081,-502.98,0.00020217,2]
[370484739,1752040235090,-315.492472,0.00020243,2]
[370484740,1752040235099,-500.0,0.00020272,2]
[370484741,1752040235109,-502.98,0.00020272,2]
[370484742,1752040235119,-242.8122734,0.00020272,2]
[370484743,1752040235129,-500.0,0.00020272,2]
[370484744,1752040235139,-198.38958192,0.00020272,2]
[370484745,1752040235155,-500.0,0.00020272,2]
[370484746,1752040235165,-473.29093417,0.00020272,2]
[370484747,1752040235174,-500.0,0.00020272,2]
[370484748,1752040235184,-500.0,0.00020272,2]
[370484749,1752040235194,-500.0,0.00020272,2]
[370484750,1752040235203,-500.0,0.00020272,2]
[370484751,1752040235214,-500.0,0.00020272,2]
[370484752,1752040235225,-500.0,0.00020272,2]
[370484753,1752040235235,-585.8199825,0.00020272,2]
[370484754,1752040235245,-460.0,0.00020273,2]
[370484755,1752040235254,-460.0,0.00020273,2]
[370484756,1752040235263,-460.0,0.00020273,2]
[370484757,1752040235273,-460.0,0.00020273,2]
[370484758,1752040235282,-460.0,0.00020273,2]
[370484759,1752040235291,-1371.06,0.00020273,2]
[370484760,1752040235301,-781.1,0.00020273,2]
[370484761,1752040235310,-460.0,0.00020273,2]
[370484762,1752040235320,-460.0,0.00020273,2]
[370484763,1752040235329,-875.57,0.00020273,2]
[370484764,1752040235338,-507.12,0.00020273,2]
[370484765,1752040235348,-955.37,0.00020273,2]
[370484766,1752040235357,-460.0,0.00020273,2]
[370484767,1752040235366,-606.93,0.00020273,2]
[370484768,1752040235376,-460.0,0.00020273,2]
[370484769,1752040235384,-460.0,0.00020273,2]
[370484770,1752040235394,-1323.68,0.00020273,2]
[370484771,1752040235403,-460.0,0.00020273,2]
[370484772,1752040235413,-460.0,0.00020273,2]
[370484773,1752040235422,-275.64650802,0.00020273,2]
[370484774,1752040235431,-460.0,0.00020273,2]
[370484775,1752040235440,-460.0,0.00020273,2]
[370484776,1752040235449,-460.0,0.00020273,2]
[370484777,1752040235459,-460.0,0.00020273,2]
[370484778,1752040235469,-460.0,0.00020273,2]
[370484779,1752040235478,-460.0,0.00020273,2]
[370484780,1752040235487,-1710.39,0.00020273,2]
[370484781,1752040235497,-460.0,0.00020273,2]
[370484782,1752040235506,-315.492472,0.00020339,2]
[370484783,1752040235516,-315.492472,0.00020435,2]
[370484784,1752040235525,-760.07289998,0.00020467,2]
[370484785,1752040235535,-315.492472,0.00020532,2]
[370484786,1752040235544,-502.98,0.00020546,2]
[370484787,1752040235554,-460.0,0.00020547,2]
[370484788,1752040235563,-460.0,0.00020547,2]
[370484789,1752040235573,-460.0,0.00020547,2]
[370484790,1752040235583,-460.0,0.00020547,2]
[370484791,1752040235592,-460.0,0.00020547,2]
[370484792,1752040235602,-1371.06,0.00020547,2]
[370484793,1752040235612,-781.1,0.00020547,2]
[370484794,1752040235621,-460.0,0.00020547,2]
[370484795,1752040235631,-875.57,0.00020547,2]
[370484796,1752040235641,-507.12,0.00020547,2]
[370484797,1752040235650,-955.37,0.00020547,2]
[370484798,1752040235659,-180.7022225,0.00020547,2]
[370484799,1752040235669,-606.93,0.00020547,2]
[370484800,1752040235679,-460.0,0.00020547,2]
[370484801,1752040235688,-460.0,0.00020547,2]
[370484802,1752040235698,-1323.68,0.00020547,2]
[370484803,1752040235707,-460.0,0.00020547,2]
[370484804,1752040235717,-460.0,0.00020547,2]
[370484805,1752040235726,-460.0,0.00020547,2]
[370484806,1752040235736,-460.0,0.00020547,2]
[370484807,1752040235746,-460.0,0.00020547,2]
[370484808,1752040235755,-460.0,0.00020547,2]
[370484809,1752040235764,-460.0,0.00020547,2]
[370484810,1752040235774,-364.954889,0.00020547,2]
[370484811,1752040235784,-1710.39,0.00020547,2]
[370484812,1752040235793,-460.0,0.00020547,2]
[370484813,1752040235803,-1008.20759223,0.00020575,2]
[370484814,1752040235812,-1000.0,0.00020575,2]
[370484815,1752040235821,-3749.98,0.000206,2]
[370484816,1752040235831,-502.98,0.00020627,2]
[370484817,1752040235841,-315.492472,0.00020628,2]
[370484818,1752040235851,-20001.26294345,0.00020632,2]
[370484819,1752040235860,-150.0,0.00020659,2]
[370484820,1752040235869,-207.4,0.00020677,2]
[370484821,1752040235878,-690.642,0.00020677,2]
[370484822,1752040235887,-300.0,0.00020677,2]
[370484823,1752040235897,-300.0,0.00020677,2]
[370484824,1752040235906,-300.0,0.00020677,2]
[370484825,1752040235915,-300.0,0.00020677,2]
[370484826,1752040235925,-300.0,0.00020677,2]
[370484827,1752040235934,-300.0,0.00020677,2]
[370484828,1752040235943,-300.0,0.00020677,2]
[370484829,1752040235952,-300.0,0.00020677,2]
[370484830,1752040235961,-225.97288028,0.00020677,2]
[370484831,1752040235971,-300.0,0.00020677,2]
[370484832,1752040235980,-300.0,0.00020677,2]
[370484833,1752040235990,-300.0,0.00020677,2]
[370484834,1752040235999,-300.0,0.00020677,2]
[370484835,1752040236008,-300.0,0.00020677,2]
[370484836,1752040236017,-300.0,0.00020677,2]
[370484837,1752040236026,-300.0,0.00020677,2]
[370484838,1752040236036,-300.0,0.00020677,2]
[370484839,1752040236045,-25000.0,0.00020677,2]
[370484840,1752040236055,-151.0,0.00020677,2]
[370484841,1752040236064,-216.7649232,0.00020677,2]
[370484842,1752040236074,-823.9032844,0.00020696,2]
[370484843,1752040236083,-760.07289998,0.00020699,2]
[370484844,1752040236093,-274.67,0.00020711,3]
[370484845,1752040236102,-502.98,0.0002072,2]
[370484846,1752040236111,-502.98,0.0002072,2]
[370484847,1752040236121,-502.98,0.0002072,2]
[370484848,1752040236130,-502.98,0.0002072,2]
[370484849,1752040236140,-502.98,0.0002072,2]
[370484850,1752040236267,-502.98,0.0002072,2]
[370484851,1752040236278,-502.98,0.0002072,2]
[370484852,1752040236288,-502.98,0.0002072,2]
[370484853,1752040236297,-502.98,0.0002072,2]
[370484854,1752040236308,-502.98,0.0002072,2]
[370484855,1752040236317,-502.98,0.0002072,2]
[370484856,1752040236327,-502.98,0.0002072,2]
[370484857,1752040236336,-502.98,0.0002072,2]
[370484858,1752040236345,-502.98,0.0002072,2]
[370484859,1752040236354,-502.98,0.0002072,2]
[370484860,1752040236364,-502.98,0.0002072,2]
[370484861,1752040236373,-133728.22218446,0.00020721,2]
[370484862,1752040236472,-881.46613896,0.00020721,2]
[370484903,1752040237892,-151.0,0.00020677,2]
[370484905,1752040237901,-151.0,0.00020677,2]
[370484907,1752040237911,-151.0,0.00020677,2]
[370484909,1752040237920,-151.0,0.00020677,2]
[370484911,1752040237930,-151.0,0.00020677,2]
[370484913,1752040237939,-151.0,0.00020677,2]
[370484915,1752040237948,-282.55391336,0.00020677,2]
[370484917,1752040237958,-2814.91401545,0.00020721,2]
[370484919,1752040237970,-129096.96545962,0.00020721,2]
[370484921,1752040237980,-315.492472,0.00020725,2]
[370484923,1752040237990,-716.195754,0.00020732,2]
[370484925,1752040238000,-916.772,0.00020737,2]
[370484927,1752040238010,-742.6949969,0.00020787,2]
[370484929,1752040238019,-2215.73,0.0002082,3]
[370484931,1752040238028,-214.14293035,0.0002082,3]
[370484933,1752040238038,-160.0,0.0002082,3]
[370484935,1752040238048,-12589.12013084,0.0002082,3]
[370484937,1752040238057,-848.55005627,0.0002082,3]
[370484939,1752040238067,-315.492472,0.00020821,2]
[370484941,1752040238076,-460.0,0.00020821,2]
[370484943,1752040238087,-460.0,0.00020821,2]
[370484945,1752040238096,-460.0,0.00020821,2]
[370484947,1752040238106,-460.0,0.00020821,2]
[370484949,1752040238115,-464.47,0.00020821,2]
[370484951,1752040238124,-1371.06,0.00020821,2]
[370484953,1752040238134,-781.1,0.00020821,2]
[370484956,1752040238147,-460.0,0.00020821,2]
[370484958,1752040238157,-875.57,0.00020821,2]
[370484960,1752040238167,-507.12,0.00020821,2]
[370484962,1752040238177,-955.37,0.00020821,2]
[370484964,1752040238187,-606.93,0.00020821,2]
[370484966,1752040238197,-460.0,0.00020821,2]
[370484968,1752040238207,-460.0,0.00020821,2]
[370484970,1752040238217,-1323.68,0.00020821,2]
[370484972,1752040238227,-460.0,0.00020821,2]
[370484974,1752040238237,-460.0,0.00020821,2]
[370484975,1752040238245,-460.0,0.00020821,2]
[370484977,1752040238255,-460.0,0.00020821,2]
[370484979,1752040238265,-499.27125912,0.00020821,2]
[370484981,1752040238275,-460.0,0.00020821,2]
[370484982,1752040238285,-460.0,0.00020821,2]
[370484983,1752040238294,-1710.39,0.00020821,2]
[370484984,1752040238304,-460.0,0.00020821,2]
[370484985,1752040238313,-770.17471178,0.00020842,2]
[370484987,1752040238323,-1846.05360819,0.0002088,2]
[370484988,1752040238333,-798.67117612,0.00020897,2]
[370484989,1752040238342,-315.492472,0.00020917,2]
[370484990,1752040238351,-828.22200964,0.00020952,2]
[370484991,1752040238361,-500.0,0.00020999,2]
[370484992,1752040238370,-12726.74978925,0.00021,2]
[370484993,1752040238383,-323.67784344,0.00021,2]
[370484994,1752040238397,-858.86622399,0.00021007,2]
[370484995,1752040238411,-315.492472,0.00021014,2]
[370484996,1752040238424,-890.64427428,0.00021062,2]
[370484997,1752040238437,-494780.17911,0.00021094,4]
[370484998,1752040238450,-460.0,0.00021095,2]
[370484999,1752040238463,-460.0,0.00021095,2]
[370485000,1752040238474,-460.0,0.00021095,2]
[370485001,1752040238485,-1371.06,0.00021095,2]
[370485002,1752040238499,-781.1,0.00021095,2]
[370485003,1752040238511,-315.01306654,0.00021095,2]
[370485004,1752040238524,-875.57,0.00021095,2]
[370485005,1752040238536,-507.12,0.00021095,2]
[370485006,1752040238550,-955.37,0.00021095,2]
[370485007,1752040238562,-606.93,0.00021095,2]
[370485008,1752040238575,-460.0,0.00021095,2]
[370485009,1752040238587,-460.0,0.00021095,2]
[370485010,1752040238599,-1323.68,0.00021095,2]
[370485011,1752040238612,-460.0,0.00021095,2]
[370485012,1752040238625,-460.0,0.00021095,2]
[370485013,1752040238644,-460.0,0.00021095,2]
[370485014,1752040238657,-241.40665662,0.00021095,2]
[370485015,1752040238671,-460.0,0.00021095,2]
[370485016,1752040238682,-460.0,0.00021095,2]
[370485017,1752040238694,-1710.39,0.00021095,2]
[370485018,1752040238706,-460.0,0.00021095,2]
[370485019,1752040238717,-315.492472,0.0002111,2]
[370485020,1752040238728,-923.59811243,0.00021117,2]
[370485021,1752040238740,-1500.0,0.00021123,2]
[370485022,1752040238758,-957.77124259,0.00021172,2]
[370485023,1752040238770,-315.492472,0.00021206,2]
[370485024,1752040238782,-315.492472,0.00021303,2]
[370485025,1752040238794,-588.48,0.0002136,3]
[370485026,1752040238805,-500.0,0.00021368,2]
[370485027,1752040238815,-460.0,0.00021369,2]
[370485028,1752040238825,-460.0,0.00021369,2]
[370485029,1752040238837,-460.0,0.00021369,2]
[370485030,1752040238848,-1371.06,0.00021369,2]
[370485031,1752040238858,-781.1,0.00021369,2]
[370485032,1752040238870,-875.57,0.00021369,2]
[370485033,1752040238882,-507.12,0.00021369,2]
[370485034,1752040238895,-955.37,0.00021369,2]
[370485035,1752040238908,-606.93,0.00021369,2]
[370485036,1752040238919,-460.0,0.00021369,2]
[370485037,1752040238930,-460.0,0.00021369,2]
[370485038,1752040238943,-1323.68,0.00021369,2]
[370485039,1752040238955,-349.92161996,0.00021369,2]
[370485040,1752040238967,-460.0,0.00021369,2]
[370485041,1752040238980,-293.9325529,0.00021369,2]
[370485042,1752040238993,-460.0,0.00021369,2]
[370485043,1752040239006,-460.0,0.00021369,2]
[370485044,1752040239016,-1710.39,0.00021369,2]
[370485045,1752040239026,-460.0,0.00021369,2]
[370485046,1752040239036,-315.492472,0.00021399,2]
[370485047,1752040239046,-315.492472,0.00021496,2]
[370485048,1752040239056,-1846.05360819,0.00021587,2]
[370485049,1752040239068,-315.492472,0.00021592,2]
[370485050,1752040239080,-460.0,0.00021643,2]
[370485051,1752040239093,-460.0,0.00021643,2]
[370485052,1752040239107,-454.85703852,0.00021643,2]
[370485053,1752040239120,-1371.06,0.00021643,2]
[370485054,1752040239133,-781.1,0.00021643,2]
[370485055,1752040239147,-875.57,0.00021643,2]
[370485056,1752040239157,-507.12,0.00021643,2]
[370485057,1752040239168,-955.37,0.00021643,2]
[370485058,1752040239179,-606.93,0.00021643,2]
[370485059,1752040239193,-460.0,0.00021643,2]
[370485060,1752040239205,-460.0,0.00021643,2]
[370485061,1752040239219,-1323.68,0.00021643,2]
[370485062,1752040239231,-460.0,0.00021643,2]
[370485063,1752040239242,-272.76170073,0.00021643,2]
[370485064,1752040239252,-460.0,0.00021643,2]
[370485065,1752040239263,-1710.39,0.00021643,2]
[370485066,1752040239275,-2000.0,0.00021671,2]
[370485067,1752040239286,-315.492472,0.00021688,2]
[370485068,1752040239298,-501.51534397,0.0002171,2]
[370485069,1752040239310,-315.492472,0.00021785,2]
[370485071,1752040239320,-587.0,0.00021788,2]
[370485072,1752040239331,-500.0,0.00021828,2]
[370485073,1752040239342,-315.492472,0.00021881,2]
[370485074,1752040239353,-12500.0,0.00021882,2]
[370485075,1752040239366,-12500.0,0.00021891,2]
[370485076,1752040239377,-12500.0,0.00021899,2]
[370485077,1752040239388,-151.0,0.000219,3]
[370485078,1752040239399,-12500.0,0.00021908,2]